{"text_format":"2","workbook":"xlsx","n_sheets":1,"sheets":["Munka1"],"not_rendered":{"charts":0,"images":0,"macros":0,"external_links":0,"defined_names":1,"comments":0,"pivot_tables":0},"unopened":[],"bounds":{"document_bytes":16777216,"sheet_cells":100000,"run_cost":"one","rows_first":2000,"rows_last":500,"rows_between":2000,"halvings":0,"cell_chars":16384,"cell_head_chars":4096},"cells_cut":0,"cells_raw":0,"read":"whole","date_system":"1900"}

{"sheet":"Munka1","index":0,"n_rows":54,"n_cols":7,"rows_kept":54,"cut":false,"hidden":false,"merged":[[20,6,37,6],[2,6,3,6],[2,0,3,0],[2,1,3,1],[2,2,3,2],[2,3,3,3],[46,0,47,0],[46,1,47,1],[46,2,47,2],[46,3,47,3],[46,4,47,4],[12,2,13,2],[12,3,13,3],[12,4,13,4],[39,0,40,0],[39,1,40,1],[39,2,40,2],[39,3,40,3],[39,4,40,4],[20,0,37,0],[20,1,37,1],[20,2,37,2],[20,3,37,3],[20,4,37,4],[48,0,50,0],[48,1,50,1],[48,2,50,2],[48,3,50,3],[16,6,17,6],[18,6,19,6],[42,4,43,4],[42,6,43,6],[46,6,47,6],[48,6,50,6],[15,3,19,3],[15,2,19,2],[15,1,19,1],[15,0,19,0],[42,0,43,0],[42,1,43,1],[42,2,43,2],[42,3,43,3],[4,4,11,4],[4,6,11,6],[4,0,11,0],[4,1,11,1],[4,2,11,2],[4,3,11,3],[12,6,13,6],[12,0,13,0],[12,1,13,1],[52,6,53,6],[52,0,53,0],[52,1,53,1],[52,2,53,2],[52,3,53,3],[52,4,53,4]]}
["Részajánlati körök","Igénylő egység","Szállítási cím","Kapcsolattartó elérhetősége ","Tárgy","Specifikáció","Egyéb információ"]
["1a.","TTIK Informatikai Intézet","6720 Szeged, Tisza Lajos krt. 103.","Hecskó Gabi\n06 62/544-306\nhecsko@inf.u-szeged.hu","Composer modul","2 db HP Synergy Composer for 12000 Frame - 804353-B21\n","Helyettesítő terméket NEM fogadnak el. Felújított, de gyári resetelt állapotú eszközt fogadnak el."]
["1b.",{"$f":"B2","v":"TTIK Informatikai Intézet"},"6720 Szeged, Tisza Lajos krt. 103.","Hecskó Gabi\n06 62/544-306\nhecsko@inf.u-szeged.hu","HDD","3 db HP 1.8TB SAS 12G 10K SFF HDD for MSA Storage - feújított EG001800JWJNL-MSA-RFB","Helyettesítő terméket NEM fogadnak el. Felújított eszközt fogadnak el."]
[{"$nulls":4},"SSD","1 db HP 800GB SAS 12G MU SFF SSD for MSA Storage - felújított MO000800JWTBR-MSA-SF-RFB"]
["2.",{"$f":"B2","v":"TTIK Informatikai Intézet"},{"$f":"C2","v":"6720 Szeged, Tisza Lajos krt. 103."},{"$f":"D2","v":"Hecskó Gabi\n06 62/544-306\nhecsko@inf.u-szeged.hu"},"Kábelek","30 db 0,5 m-es SFTP CAT6A kábel ","Helyettesítő terméket NEM fogadnak el."]
[{"$nulls":5},"200 db 1,5 m-es SFTP CAT6A kábel "]
[{"$nulls":5},"30 db 10 m-es SFTP CAT6A kábel "]
[{"$nulls":5},"200 db 1 m-es SFTP CAT6A kábel "]
[{"$nulls":5},"150 db 2 m-es SFTP CAT6A kábel "]
[{"$nulls":5},"100 db 3 m-es SFTP CAT6A kábel "]
[{"$nulls":5},"50 db 5 m-es SFTP CAT6A kábel "]
[{"$nulls":5},"30 db 7 m-es SFTP CAT6A kábel "]
["3.",{"$f":"B5","v":"TTIK Informatikai Intézet"},"6720 Szeged, Tisza Lajos krt. 103.","Hecskó Gabi\n06 62/544-306\nhecsko@inf.u-szeged.hu","Telefon","5 db Panasonic KX-TS500HGB vezetékes telefon fekete","Helyettesítő terméket NEM fogadnak el."]
[{"$nulls":5},"2 db Panasonic KX-TS880FXB analóg telefon, Caller ID, fekete"]
["4.",{"$f":"B5","v":"TTIK Informatikai Intézet"},"6720 Szeged, Tisza Lajos krt. 103.","Hecskó Gabi\n06 62/544-306\nhecsko@inf.u-szeged.hu","Szoftver","2 db Szoftver: 6ES7822-1BE24-4YA5 SCE Trainer Package V20 DL","Helyettesító terméket NEM fogadnak el."]
["5.","Mérnöki Kar","6724 Szeged, Mars tér 7.","Maczelkáné Minyó Judit\n06 62/546-007\nmjudit@mk.u-szeged.hu","Kábelek","5 db Delock HDMI 2 -1 (HDMI Switch) 4K 60 Hz kompakt (64072)","Helyettesítő terméket NEM fogadnak el."]
[{"$nulls":4},"Pendrive","10 db Pendrive 64GB","Paraméterekkel megegyező terméket elfogadnak."]
[{"$nulls":4},"Külső HDD","4 db Külső HDD 2TB"]
[{"$nulls":4},"Hangszóró","7 db Genius SP-HF 1200B hangfal","Helyettesítő terméket NEM fogadnak el."]
[{"$nulls":4},"Hordozható készülék","4 db Panasonic KX-TGC210PDB hívóazonosítós kihangosítható fekete dect telefon"]
["6.",{"$f":"B16","v":"Mérnöki Kar"},{"$f":"C16","v":"6724 Szeged, Mars tér 7."},{"$f":"D16","v":"Maczelkáné Minyó Judit\n06 62/546-007\nmjudit@mk.u-szeged.hu"},"Informatikai eszközök","5db DELOCK HDMI Összekötő Fekete 20m 83452","Paraméterekkel megegyező termékeket is elfogadnak."]
[{"$nulls":5},"5db DELOCK HDMI Összekötő Fekete 15m 82710"]
[{"$nulls":5},"4db DELOCK Szerszámkészlet 31 darabos M.2 SSD-hez és modulokhoz 18288"]
[{"$nulls":5},"2db Axagon PCIE NVME+NGFF M.2 SSD adapter fekete (PCEM2-D)"]
[{"$nulls":5},"2db AXAGON EEM2-SB2 SuperSpeed+ USB-C - M.2 NVMe & SATA SSD RAW boksz"]
[{"$nulls":5},"5db Delock 65466 DVI 24+1 pin apa ---> HDMI anya adapter"]
[{"$nulls":5},"2db Equip Kábel - 625416 (UTP patch kábel, CAT6, 10m)"]
[{"$nulls":5},"10db Equip Kábel - 625414 (UTP patch kábel, CAT6, bézs, 5m)"]
[{"$nulls":5},"10db Equip Kábel - 625412 (UTP patch kábel, CAT6, 3m)"]
[{"$nulls":5},"20db Equip Kábel - 625411 (UTP patch kábel, CAT6,  2m)"]
[{"$nulls":5},"2db CANYON HUB 8-in-1, USB-C, 3xUSB3.0, 1xUSB-C, HDMI, VGA, Ethernet, Audio, szürke - CNS-TDS14"]
[{"$nulls":5},"5db Axagon ADE-AR Type-A USB 3.2 - Gigabit Ethernet adapter"]
[{"$nulls":5},"5db UGREEN USB C RJ45 hálózati adapter 1 Gbps (50737B)"]
[{"$nulls":5},"10db Vention HDMI 2.0 4K kábel 2m fekete (AACBH)"]
[{"$nulls":5},"4db Akyga DVI apa 24+5 / HDMI anya átalakító adapter - AK-AD-03"]
[{"$nulls":5},"4db Delock USB 3.0 Aktív Hosszabbító kábel, 5 m"]
[{"$nulls":5},"5db Delock 84409 HDMI kábel 5m 4K"]
[{"$nulls":5},"10db DELOCK HDMI Összekötő Fekete 10m 82709 4K"]
["7.",{"$f":"B21","v":"Mérnöki Kar"},"6724 Szeged, Mars tér 7.","Maczelkáné Minyó Judit\n06 62/546-007\nmjudit@mk.u-szeged.hu","Projektor ","5 db Epson EB-FH06 projektor","Helyettesítő terméket NEM fogadnak el."]
["8.",{"$f":"B39","v":"Mérnöki Kar"},"6724 Szeged, Mars tér 7.","Maczelkáné Minyó Judit\n06 62/546-007\nmjudit@mk.u-szeged.hu","SSD","54 db 2,5\" SSD 480GB, SATA III (olv. sebesség: min 500 MB/s, írási sebesség: min 500 MB/s) 5 év garancia","Paraméterekkel megegyező termékeket elfogadnak."]
[{"$nulls":5},"5 db  Samsung 990 Pro 4TB Nvme SSD 5 év garancia","Helyettesítő terméket NEM fogadnak el."]
["9.","SZAOK Farmakológiai és Farmakoterápiai Intézet","6720 Szeged, Dóm tér 12.","Kőrös Anikó\n06 62/545-675\nkoros.aniko@med.u-szeged.hu","Hordozható készülék","2 db Panasonic KX-TGC210PDB hívóazonosítós kihangosítható Dect telefon - fekete","Helyettesítő terméket NEM fogadnak el."]
["10.","GYTK Dékáni Hivatal","6720 Szeged, Zrínyi utca 9.","Zámbó Zoltán\n06 30/664-3194\nzambo.zoltan@szte.hu","Hordozható készülék","1 db Panasonic KX-TG6811PDB hordozható DECT telefon, kihangosítható, ezüst","Helyettesítő terméket NEM fogadnak el."]
[{"$nulls":5},"2 db Panasonic KX-TG1611HGH"]
["11.","Műszaki Igazgatóság Védelmi Szakterületért Felelős Részleg","6722 Szeged, Tisza Lajos krt. 47.","Nagy-Hamza Gréta\n06 62/544-839\nhamza.greta@szte.hu","Mobiltelefon","20 db Nokia 150 (2023) DS, Black, cikkszám: 286845670","Helyettesítő terméket NEM fogadnak el."]
["12.","SZAOK Orvosi Fizikai és Orvosi Informatikai Intézet","6726 Szeged, Korányi fasor 9.","Mező Zsuzsa\n06 62/545-792\nmezo.zsuzsa@szte.hu","Vezeték nélküli egér","5 db Vezeték nélküli egér, bluetooth egér, nem elemes, tölthető","Paraméterekkel megegyező termékeket elfogadnak."]
["13.","Traumatológiai Klinika","6725 Szeged, Semmelweis utca 6.","Tripolszkyné Marosán Krisztina\n06 20/201-6970\ntripolszkyne.marosan.krisztina@szte.hu","Projektor + vetítővászon","2 db Epson EB-FH52","Helyettesítő terméket NEM fogadnak el."]
[{"$nulls":5},"2 db 120\" 16:9 hordozható tripod vetítővászon"]
["14.","SZAOK Neurológiai Klinika","6725 Szeged, Semmelweis utca 6.","Kónyáné Berényi Mónika\n+36 62/545-351\noffice.neur@med.u-szeged.hu","Presenter","1 db Logitech Spotligh","Helyettesítő terméket NEM fogadnak el."]
[{"$nulls":4},"Nyomtató","4 db Lexmark MS431 dn  "]
[{"$nulls":4},"Mátrixnyomtató","3 db Epson LQ-350 mátrixnyomtató 24 tűs, 80 oszlopos fej, 360x180 DPI USB, RS-232, LPT csatlakozó, 24 hónap garancia"]
["15.","Konfuciusz Intézet","6722 Szeged, Mars tér 20.","Boldizsár Melinda\n06 30-071-8937\nboldizsar.melinda@szte.hu","Diktafon","4 db Sony ICD-PX370, fekete","Helyettesítő terméket NEM fogadnak el."]
["16.","SZAOK Orvosi Vegytani Intézet","6725 Szeged, Tisza Lajos krt. 113.","Horváth Éva Etelka\n+36 62/545-136\noffice.mdche@med.u-szeged.hu","Meghajtó","1 db Synology Rackstation RS 822","Helyettesítő terméket NEM fogadnak el."]
[{"$nulls":5},"4db HDD Synology   Enterprise    3.5\" SATA HDD    HAT5300    HAT5300-12T    1402    12TB vagy \n4db HDD Synology    Enterprise    3.5\" SATA HDD    HAT5300    HAT5300-12T    1401    12TB vagy\n4db HDD Synology    Plus    3.5\" SATA HDD    HAT3310    HAT3310-12T    1402    12TB vagy\n4db HDD Synology    Plus    3.5\" SATA HDD    HAT3300    HAT3300-12T    PL01    12TB"]